fUSD/lending_fUSD_20240712
["ID","MTS","AMOUNT","RATE_DAILY","PERIOD"]
[331840047,1720789854228,-782.58,0.00013753,2]
[331840048,1720789854237,-500.0,0.00013753,2]
[331840049,1720789854247,-500.0,0.00013753,2]
[331840050,1720789854256,-500.0,0.00013753,2]
[331840051,1720789854266,-500.0,0.00013753,2]
[331840052,1720789854275,-500.0,0.00013753,2]
[331840053,1720789854284,-631.97,0.00013753,2]
[331840054,1720789854293,-500.0,0.00013753,2]
[331840055,1720789854302,-500.0,0.00013753,2]
[331840056,1720789854311,-500.0,0.00013753,2]
[331840057,1720789854322,-500.0,0.00013753,2]
[331840058,1720789854331,-500.0,0.00013753,2]
[331840059,1720789854340,-500.0,0.00013753,2]
[331840060,1720789854351,-500.0,0.00013753,2]
[331840061,1720789854361,-500.0,0.00013753,2]
[331840062,1720789854371,-500.0,0.00013753,2]
[331840063,1720789854380,-567.31,0.00013753,2]
[331840064,1720789854389,-500.0,0.00013753,2]
[331840065,1720789854398,-644.29,0.00013753,2]
[331840066,1720789854407,-500.0,0.00013753,2]
[331840067,1720789854416,-620.15,0.00013753,2]
[331840068,1720789854425,-817.65,0.00013753,2]
[331840069,1720789854434,-500.0,0.00013753,2]
[331840070,1720789854443,-505.7338242,0.00013753,2]
[331840071,1720789854453,-500.0,0.00013753,2]
[331840072,1720789854464,-629.89,0.00013753,2]
[331840073,1720789854474,-503.84,0.00013753,2]
[331840074,1720789854483,-500.0,0.00013753,2]
[331840075,1720789854492,-500.0,0.00013753,2]
[331840076,1720789854501,-1038.55,0.00013753,2]
[331840077,1720789854510,-153.88076709,0.00013753,2]
[331840078,1720789854519,-1009.15,0.00013753,2]
[331840079,1720789854528,-500.0,0.00013753,2]
[331840080,1720789854538,-500.0,0.00013753,2]
[331840081,1720789854547,-775.83,0.00013753,2]
[331840082,1720789854558,-541.87,0.00013753,2]
[331840083,1720789854567,-500.0,0.00013753,2]
[331840084,1720789854576,-996.43,0.00013753,2]
[331840085,1720789854585,-503.79,0.00013753,2]
[331840086,1720789854597,-315.42138929,0.00013753,2]
[331840087,1720789854651,-184.57861071,0.00013753,2]
[331840088,1720789854661,-803.24,0.00013753,2]
[331840089,1720789854672,-500.0,0.00013753,2]
[331840090,1720789854683,-990.46,0.00013753,2]
[331840091,1720789854692,-847.07,0.00013753,2]
[331840092,1720789854701,-113.25569044,0.00013753,2]
[331840093,1720789854772,-645.35430956,0.00013753,2]
[331840094,1720789854782,-714.3,0.00013753,2]
[331840095,1720789854791,-694.37,0.00013753,2]
[331840096,1720789854800,-844.8,0.00013753,2]
[331840097,1720789854810,-629.1,0.00013753,2]
[331840098,1720789854819,-500.0,0.00013753,2]
[331840099,1720789854828,-500.0,0.00013753,2]
[331840100,1720789854837,-500.0,0.00013753,2]
[331840101,1720789854847,-500.0,0.00013753,2]
[331840102,1720789854855,-500.0,0.00013753,2]
[331840103,1720789854865,-500.0,0.00013753,2]
[331840104,1720789854875,-500.0,0.00013753,2]
[331840105,1720789854883,-500.0,0.00013753,2]
[331840106,1720789854893,-1257.69,0.00013753,2]
[331840107,1720789854902,-500.0,0.00013753,2]
[331840108,1720789854911,-500.0,0.00013753,2]
[331840109,1720789854922,-500.0,0.00013753,2]
[331840110,1720789854932,-500.0,0.00013753,2]
[331840111,1720789854942,-500.0,0.00013753,2]
[331840112,1720789854952,-668.44,0.00013753,2]
[331840113,1720789854962,-1101.24,0.00013753,2]
[331840114,1720789854972,-500.0,0.00013753,2]
[331840115,1720789854983,-500.0,0.00013753,2]
[331840116,1720789854993,-782.69,0.00013753,2]
[331840117,1720789855002,-579.95,0.00013753,2]
[331840118,1720789855013,-500.0,0.00013753,2]
[331840119,1720789855023,-500.0,0.00013753,2]
[331840120,1720789855032,-500.0,0.00013753,2]
[331840121,1720789855041,-652.77,0.00013753,2]
[331840122,1720789855051,-500.0,0.00013753,2]
[331840123,1720789855061,-509.91,0.00013753,2]
[331840124,1720789855070,-832.73,0.00013753,2]
[331840125,1720789855080,-500.0,0.00013753,2]
[331840126,1720789855089,-649.50492247,0.00013753,2]
[331840127,1720789855099,-500.0,0.00013753,2]
[331840128,1720789855108,-949.05,0.00013753,2]
[331840129,1720789855119,-500.0,0.00013753,2]
[331840130,1720789855129,-610.85,0.00013753,2]
[331840131,1720789855138,-500.0,0.00013753,2]
[331840132,1720789855148,-590.12,0.00013753,2]
[331840133,1720789855158,-777.05,0.00013753,2]
[331840134,1720789855167,-500.0,0.00013753,2]
[331840135,1720789855177,-500.0,0.00013753,2]
[331840136,1720789855186,-500.0,0.00013753,2]
[331840137,1720789855195,-500.0,0.00013753,2]
[331840138,1720789855205,-500.0,0.00013753,2]
[331840139,1720789855215,-619.43,0.00013753,2]
[331840140,1720789855223,-500.0,0.00013753,2]
[331840141,1720789855233,-1250.35,0.00013753,2]
[331840142,1720789855243,-500.0,0.00013753,2]
[331840143,1720789855253,-500.0,0.00013753,2]
[331840144,1720789855264,-500.0,0.00013753,2]
[331840145,1720789855273,-859.29,0.00013753,2]
[331840146,1720789855283,-510.73,0.00013753,2]
[331840147,1720789855292,-500.0,0.00013753,2]
[331840148,1720789855301,-293.11523033,0.00013753,2]
[331840149,1720789855312,-834.94,0.00013753,2]
[331840150,1720789855321,-600.08,0.00013753,2]
[331840151,1720789855332,-500.0,0.00013753,2]
[331840152,1720789855342,-151.0,0.00013753,2]
[331840153,1720789855353,-151.0,0.00013753,2]
[331840154,1720789855365,-151.0,0.00013753,2]
[331840155,1720789855376,-500.0,0.00013753,2]
[331840156,1720789855386,-238.66566,0.00013753,2]
[331840157,1720789855395,-984.16,0.00013753,2]
[331840158,1720789855404,-500.0,0.00013753,2]
[331840159,1720789855414,-500.0,0.00013753,2]
[331840160,1720789855424,-500.0,0.00013753,2]
[331840161,1720789855433,-500.0,0.00013753,2]
[331840162,1720789855442,-853.47,0.00013753,2]
[331840163,1720789855452,-567.98,0.00013753,2]
[331840164,1720789855461,-500.0,0.00013753,2]
[331840165,1720789855470,-500.0,0.00013753,2]
[331840166,1720789855480,-1083.38,0.00013753,2]
[331840167,1720789855490,-500.0,0.00013753,2]
[331840168,1720789855499,-500.0,0.00013753,2]
[331840169,1720789855509,-500.0,0.00013753,2]
[331840170,1720789855519,-500.0,0.00013753,2]
[331840171,1720789855529,-500.0,0.00013753,2]
[331840172,1720789855538,-839.43,0.00013753,2]
[331840173,1720789855548,-1014.56,0.00013753,2]
[331840174,1720789855557,-1046.15,0.00013753,2]
[331840175,1720789855566,-582.48,0.00013753,2]
[331840176,1720789855576,-500.0,0.00013753,2]
[331840177,1720789855586,-500.0,0.00013753,2]
[331840178,1720789855599,-500.0,0.00013753,2]
[331840179,1720789855609,-1505.17,0.00013753,2]
[331840180,1720789855618,-500.0,0.00013753,2]
[331840181,1720789855628,-151.0,0.00013753,2]
[331840182,1720789855639,-528.84,0.00013753,2]
[331840183,1720789855649,-254.877368,0.00013753,2]
[331840184,1720789855659,-500.0,0.00013753,2]
[331840185,1720789855668,-635.4,0.00013753,2]
[331840186,1720789855680,-663.74,0.00013753,2]
[331840187,1720789855691,-500.0,0.00013753,2]
[331840188,1720789855700,-821.69,0.00013753,2]
[331840189,1720789855709,-500.0,0.00013753,2]
[331840190,1720789855719,-755.19,0.00013753,2]
[331840191,1720789855728,-500.0,0.00013753,2]
[331840192,1720789855737,-500.0,0.00013753,2]
[331840193,1720789855747,-500.0,0.00013753,2]
[331840194,1720789855757,-886.46,0.00013753,2]
[331840195,1720789855766,-500.0,0.00013753,2]
[331840196,1720789855776,-500.0,0.00013753,2]
[331840197,1720789855786,-500.0,0.00013753,2]
[331840198,1720789855795,-500.0,0.00013753,2]
[331840199,1720789855805,-895.05,0.00013753,2]
[331840200,1720789855814,-729.31,0.00013753,2]
[331840201,1720789855824,-500.0,0.00013753,2]
[331840202,1720789855834,-500.0,0.00013753,2]
[331840203,1720789856038,-500.0,0.00013753,2]
[331840204,1720789856048,-802.62,0.00013753,2]
[331840205,1720789856058,-500.0,0.00013753,2]
[331840206,1720789856068,-500.0,0.00013753,2]
[331840207,1720789856078,-911.61,0.00013753,2]
[331840208,1720789856088,-500.0,0.00013753,2]
[331840209,1720789856098,-1391.84,0.00013753,2]
[331840210,1720789856107,-500.0,0.00013753,2]
[331840211,1720789856118,-500.0,0.00013753,2]
[331840212,1720789856127,-500.0,0.00013753,2]
[331840213,1720789856137,-500.0,0.00013753,2]
[331840214,1720789856147,-500.0,0.00013753,2]
[331840215,1720789856157,-892.05,0.00013753,2]
[331840216,1720789856167,-1207.51,0.00013753,2]
[331840217,1720789856177,-588.86,0.00013753,2]
[331840218,1720789856188,-639.91,0.00013753,2]
[331840219,1720789856199,-500.0,0.00013753,2]
[331840220,1720789856209,-500.0,0.00013753,2]
[331840221,1720789856219,-500.0,0.00013753,2]
[331840222,1720789856229,-584.06,0.00013753,2]
[331840223,1720789856238,-500.0,0.00013753,2]
[331840224,1720789856248,-944.74,0.00013753,2]
[331840225,1720789856259,-500.0,0.00013753,2]
[331840226,1720789856268,-500.0,0.00013753,2]
[331840227,1720789856278,-637.61,0.00013753,2]
[331840228,1720789856288,-500.0,0.00013753,2]
[331840229,1720789856298,-827.79,0.00013753,2]
[331840230,1720789856307,-500.0,0.00013753,2]
[331840231,1720789856317,-709.26,0.00013753,2]
[331840232,1720789856327,-500.0,0.00013753,2]
[331840233,1720789856336,-500.0,0.00013753,2]
[331840234,1720789856345,-500.0,0.00013753,2]
[331840235,1720789856355,-500.0,0.00013753,2]
[331840236,1720789856364,-500.0,0.00013753,2]
[331840237,1720789856375,-500.0,0.00013753,2]
[331840238,1720789856384,-716.75,0.00013753,2]
[331840239,1720789856394,-500.0,0.00013753,2]
[331840240,1720789856404,-500.0,0.00013753,2]
[331840241,1720789856414,-668.72,0.00013753,2]
[331840242,1720789856423,-500.0,0.00013753,2]
[331840243,1720789856432,-500.0,0.00013753,2]
[331840244,1720789856441,-1111.83,0.00013753,2]
[331840245,1720789856451,-500.0,0.00013753,2]
[331840246,1720789856460,-500.0,0.00013753,2]
[331840247,1720789856470,-1600.61,0.00013753,2]
[331840248,1720789856479,-500.0,0.00013753,2]
[331840249,1720789856488,-577.47,0.00013753,2]
[331840250,1720789856499,-500.0,0.00013753,2]
[331840251,1720789856508,-500.0,0.00013753,2]
[331840252,1720789856518,-500.0,0.00013753,2]
[331840253,1720789856527,-500.0,0.00013753,2]
[331840254,1720789856537,-566.18,0.00013753,2]
[331840255,1720789856547,-925.25,0.00013753,2]
[331840256,1720789856557,-500.0,0.00013753,2]
[331840257,1720789856566,-500.0,0.00013753,2]
[331840258,1720789856578,-870.59,0.00013753,2]
[331840259,1720789856589,-795.6,0.00013753,2]
[331840260,1720789856601,-186.19329372,0.00013753,2]
[331840261,1720789856612,-500.0,0.00013753,2]
[331840262,1720789856623,-500.0,0.00013753,2]
[331840263,1720789856632,-534.84,0.00013753,2]
[331840264,1720789856643,-622.53,0.00013753,2]
[331840265,1720789856653,-500.0,0.00013753,2]
[331840266,1720789856662,-1055.29,0.00013753,2]
[331840267,1720789856673,-500.0,0.00013753,2]
[331840268,1720789856683,-500.0,0.00013753,2]
[331840269,1720789856693,-500.0,0.00013753,2]
[331840270,1720789856703,-1336.45,0.00013753,2]
[331840271,1720789856712,-500.0,0.00013753,2]
[331840272,1720789856722,-1815.47,0.00013753,2]
[331840273,1720789856732,-658.22,0.00013753,2]
[331840274,1720789856742,-227.91859922,0.00013753,2]
[331840275,1720789856752,-500.0,0.00013753,2]
[331840276,1720789856762,-1424.99,0.00013753,2]
[331840277,1720789856772,-553.77,0.00013753,2]
[331840278,1720789856782,-500.0,0.00013753,2]
[331840279,1720789856791,-1089.24,0.00013753,2]
[331840280,1720789856800,-742.94,0.00013753,2]
[331840281,1720789856810,-792.21,0.00013753,2]
[331840282,1720789856820,-500.0,0.00013753,2]
[331840283,1720789856829,-549.79,0.00013753,2]
[331840284,1720789856839,-924.25,0.00013753,2]
[331840285,1720789856848,-500.0,0.00013753,2]
[331840286,1720789856858,-500.0,0.00013753,2]
[331840287,1720789856867,-1031.79,0.00013753,2]
[331840288,1720789856877,-500.0,0.00013753,2]
[331840289,1720789856887,-500.0,0.00013753,2]
[331840290,1720789856898,-1271.31,0.00013753,2]
[331840291,1720789856908,-500.0,0.00013753,2]
[331840292,1720789856918,-595.66,0.00013753,2]
[331840293,1720789856928,-500.0,0.00013753,2]
[331840294,1720789856937,-500.0,0.00013753,2]
[331840295,1720789856947,-500.0,0.00013753,2]
[331840296,1720789856957,-817.73,0.00013753,2]
[331840297,1720789856967,-852.65,0.00013753,2]
[331840298,1720789856977,-500.0,0.00013753,2]
[331840299,1720789856987,-500.0,0.00013753,2]
[331840300,1720789856998,-500.0,0.00013753,2]
[331840301,1720789857008,-772.99,0.00013753,2]
[331840302,1720789857018,-500.0,0.00013753,2]
[331840303,1720789857028,-591.47,0.00013753,2]
[331840304,1720789857038,-500.0,0.00013753,2]
[331840305,1720789857047,-707.75,0.00013753,2]
[331840306,1720789857058,-500.0,0.00013753,2]
[331840307,1720789857068,-581.57,0.00013753,2]
[331840308,1720789857077,-500.0,0.00013753,2]
[331840309,1720789857087,-940.18,0.00013753,2]
[331840310,1720789857097,-830.78,0.00013753,2]
[331840311,1720789857106,-500.0,0.00013753,2]
[331840312,1720789857116,-804.25,0.00013753,2]
[331840313,1720789857126,-2224.26,0.00013753,2]
[331840314,1720789857136,-500.0,0.00013753,2]
[331840315,1720789857146,-500.0,0.00013753,2]
[331840316,1720789857155,-648.75,0.00013753,2]
[331840317,1720789857165,-500.0,0.00013753,2]
[331840318,1720789857175,-586.22,0.00013753,2]
[331840319,1720789857184,-1438.85,0.00013753,2]
[331840320,1720789857194,-500.0,0.00013753,2]
[331840321,1720789857204,-500.0,0.00013753,2]
[331840322,1720789857214,-520.87,0.00013753,2]
[331840323,1720789857223,-594.01,0.00013753,2]
[331840324,1720789857233,-500.0,0.00013753,2]
[331840325,1720789857243,-978.48,0.00013753,2]
[331840326,1720789857253,-553.34,0.00013753,2]
[331840327,1720789857262,-500.0,0.00013753,2]
[331840328,1720789857272,-500.0,0.00013753,2]
[331840329,1720789857282,-665.3,0.00013753,2]
[331840330,1720789857291,-601.23,0.00013753,2]
[331840331,1720789857301,-1250.76,0.00013753,2]
[331840332,1720789857311,-500.0,0.00013753,2]
[331840333,1720789857321,-500.0,0.00013753,2]
[331840334,1720789857331,-500.0,0.00013753,2]
[331840335,1720789857341,-500.0,0.00013753,2]
[331840336,1720789857350,-500.0,0.00013753,2]
[331840337,1720789857359,-151.0,0.00013753,2]
[331840338,1720789857370,-500.0,0.00013753,2]
[331840339,1720789857380,-151.0,0.00013753,2]
[331840340,1720789857390,-1128.0,0.00013753,2]
[331840341,1720789857400,-500.0,0.00013753,2]
[331840342,1720789857410,-151.0,0.00013753,2]
[331840343,1720789857420,-151.0,0.00013753,2]
[331840344,1720789857430,-151.0,0.00013753,2]
[331840345,1720789857439,-766.22,0.00013753,2]
[331840346,1720789857448,-500.0,0.00013753,2]
[331840347,1720789857458,-500.0,0.00013753,2]
[331840348,1720789857467,-917.91,0.00013753,2]
[331840349,1720789857477,-1181.64,0.00013753,2]
[331840350,1720789857487,-615.26,0.00013753,2]
[331840351,1720789857496,-500.0,0.00013753,2]
[331840352,1720789857506,-508.57,0.00013753,2]
[331840353,1720789857515,-500.0,0.00013753,2]
[331840354,1720789857525,-511.49,0.00013753,2]
[331840355,1720789857534,-919.62,0.00013753,2]
[331840356,1720789857544,-500.0,0.00013753,2]
[331840357,1720789857554,-718.26107,0.00013753,2]
[331840358,1720789857564,-718.26107,0.00013753,2]
[331840359,1720789857574,-2646.58,0.00013753,2]
[331840360,1720789857584,-1249.29,0.00013753,2]
[331840361,1720789857594,-718.26107,0.00013753,2]
[331840362,1720789857607,-591.32,0.00013753,2]
[331840363,1720789857616,-718.26107,0.00013753,2]
[331840364,1720789857626,-718.26107,0.00013753,2]
[331840365,1720789857636,-531.9,0.00013753,2]
[331840366,1720789857647,-764.62,0.00013753,2]
[331840367,1720789857656,-1288.73,0.00013753,2]
[331840368,1720789857666,-5029.04,0.00013753,2]
[331840369,1720789857678,-500.0,0.00013753,2]
[331840370,1720789857687,-718.26107,0.00013753,2]
[331840371,1720789857697,-995.51,0.00013753,2]
[331840372,1720789857707,-718.26107,0.00013753,2]
[331840373,1720789857717,-500.0,0.00013753,2]
[331840374,1720789857727,-718.26107,0.00013753,2]
[331840375,1720789857736,-695.77,0.00013753,2]
[331840376,1720789857746,-718.26107,0.00013753,2]
[331840377,1720789857755,-733.66,0.00013753,2]
[331840378,1720789857766,-718.26107,0.00013753,2]
[331840379,1720789857775,-1084.4,0.00013753,2]
[331840380,1720789857785,-500.0,0.00013753,2]
[331840381,1720789857795,-271.75348,0.00013753,2]
[331840382,1720789857804,-500.0,0.00013753,2]
[331840383,1720789857814,-271.75348,0.00013753,2]
[331840384,1720789857824,-271.75348,0.00013753,2]
[331840385,1720789857833,-946.17,0.00013753,2]
[331840386,1720789857843,-271.75348,0.00013753,2]
[331840387,1720789857852,-271.75348,0.00013753,2]
[331840388,1720789857862,-1027.92,0.00013753,2]
[331840389,1720789857874,-1167.31,0.00013753,2]
[331840390,1720789857883,-500.0,0.00013753,2]
[331840391,1720789857893,-271.75348,0.00013753,2]
[331840392,1720789857905,-271.75348,0.00013753,2]
[331840393,1720789857915,-500.0,0.00013753,2]
[331840394,1720789857925,-271.75348,0.00013753,2]
[331840395,1720789857934,-271.75348,0.00013753,2]
[331840396,1720789857944,-271.75348,0.00013753,2]
[331840397,1720789857954,-500.0,0.00013753,2]
[331840398,1720789857965,-511.73,0.00013753,2]
[331840399,1720789857975,-500.0,0.00013753,2]
[331840400,1720789857985,-733.81,0.00013753,2]
[331840401,1720789857994,-1499.5,0.00013753,2]
[331840402,1720789858004,-500.0,0.00013753,2]
[331840403,1720789858013,-500.0,0.00013753,2]
[331840404,1720789858023,-930.99,0.00013753,2]
[331840405,1720789858034,-631.56,0.00013753,2]
[331840406,1720789858043,-546.81,0.00013753,2]
[331840407,1720789858053,-802.2,0.00013753,2]
[331840408,1720789858063,-500.0,0.00013753,2]
[331840409,1720789858072,-331.717603,0.00013753,2]
[331840410,1720789858082,-331.717603,0.00013753,2]
[331840411,1720789858092,-909.86,0.00013753,2]
[331840412,1720789858102,-331.717603,0.00013753,2]
[331840413,1720789858112,-331.717603,0.00013753,2]
[331840414,1720789858123,-331.717603,0.00013753,2]
[331840415,1720789858133,-151.0,0.00013753,2]
[331840416,1720789858142,-331.717603,0.00013753,2]
[331840417,1720789858152,-795.85,0.00013753,2]
[331840418,1720789858162,-500.0,0.00013753,2]
[331840419,1720789858171,-331.717603,0.00013753,2]
[331840420,1720789858181,-500.0,0.00013753,2]
[331840421,1720789858190,-331.717603,0.00013753,2]
[331840422,1720789858199,-559.95,0.00013753,2]
[331840423,1720789858209,-331.717603,0.00013753,2]
[331840424,1720789858219,-331.717603,0.00013753,2]
[331840425,1720789858229,-500.0,0.00013753,2]
[331840426,1720789858239,-1541.15,0.00013753,2]
[331840427,1720789858248,-500.0,0.00013753,2]
[331840428,1720789858258,-500.0,0.00013753,2]
[331840429,1720789858267,-621.25,0.00013753,2]
[331840430,1720789858276,-500.0,0.00013753,2]
[331840431,1720789858286,-500.0,0.00013753,2]
[331840432,1720789858296,-692.5,0.00013753,2]
[331840433,1720789858305,-720.81,0.00013753,2]
[331840434,1720789858315,-500.0,0.00013753,2]
[331840435,1720789858324,-530.57,0.00013753,2]
[331840436,1720789858334,-500.0,0.00013753,2]
[331840437,1720789858343,-500.0,0.00013753,2]
[331840438,1720789858353,-1059.66,0.00013753,2]
[331840439,1720789858362,-500.0,0.00013753,2]
[331840440,1720789858373,-989.328087,0.00013753,2]
[331840441,1720789858382,-989.328087,0.00013753,2]
[331840442,1720789858391,-1254.68,0.00013753,2]
[331840443,1720789858464,-989.328087,0.00013753,2]
[331840444,1720789858476,-1028.39,0.00013753,2]
[331840445,1720789858485,-989.328087,0.00013753,2]
[331840446,1720789858495,-673.84,0.00013753,2]
[331840447,1720789858504,-989.328087,0.00013753,2]
[331840448,1720789858513,-500.0,0.00013753,2]
[331840449,1720789858522,-989.328087,0.00013753,2]
[331840450,1720789858531,-989.328087,0.00013753,2]
[331840451,1720789858540,-989.328087,0.00013753,2]
[331840452,1720789858549,-989.328087,0.00013753,2]
[331840453,1720789858558,-500.0,0.00013753,2]
[331840454,1720789858568,-989.328087,0.00013753,2]
[331840455,1720789858577,-500.0,0.00013753,2]
[331840456,1720789858587,-601.67327532,0.00013753,2]
[331840457,1720789858599,-606.98,0.00013753,2]
[331840458,1720789858609,-500.0,0.00013753,2]
[331840459,1720789858618,-1309.26,0.00013753,2]
[331840460,1720789858628,-1754.62,0.00013753,2]
[331840461,1720789858639,-500.0,0.00013753,2]
[331840462,1720789858648,-227.343879,0.00013753,2]
[331840463,1720789858658,-227.343879,0.00013753,2]
[331840464,1720789858668,-227.343879,0.00013753,2]
[331840465,1720789858680,-522.73047415,0.00013753,2]
[331840466,1720789858690,-563.8,0.00013753,2]
[331840467,1720789858700,-227.343879,0.00013753,2]
[331840468,1720789858710,-227.343879,0.00013753,2]
[331840469,1720789858719,-1549.9,0.00013753,2]
[331840470,1720789858729,-227.343879,0.00013753,2]
[331840471,1720789858739,-578.68,0.00013753,2]
[331840472,1720789858749,-227.343879,0.00013753,2]
[331840473,1720789858759,-227.343879,0.00013753,2]
[331840474,1720789858768,-227.343879,0.00013753,2]
[331840475,1720789858778,-500.0,0.00013753,2]
[331840476,1720789858788,-500.0,0.00013753,2]
[331840477,1720789858798,-227.343879,0.00013753,2]
[331840478,1720789858808,-901.04,0.00013753,2]
[331840479,1720789858817,-227.343879,0.00013753,2]
[331840480,1720789858827,-151.0,0.00013753,2]
[331840481,1720789858838,-227.343879,0.00013753,2]
[331840482,1720789858848,-151.0,0.00013753,2]
[331840483,1720789858858,-500.0,0.00013753,2]
[331840484,1720789858867,-806.51,0.00013753,2]
[331840485,1720789858877,-151.0,0.00013753,2]
[331840486,1720789858887,-151.0,0.00013753,2]
[331840487,1720789858895,-151.0,0.00013753,2]
[331840488,1720789858905,-151.0,0.00013753,2]
[331840489,1720789858914,-812.67,0.00013753,2]
[331840490,1720789858924,-500.0,0.00013753,2]
[331840491,1720789858934,-500.0,0.00013753,2]
[331840492,1720789858943,-907.97,0.00013753,2]
[331840493,1720789858953,-1270.33,0.00013753,2]
[331840494,1720789858962,-722.28,0.00013753,2]
[331840495,1720789858972,-500.0,0.00013753,2]
[331840496,1720789858981,-739.34,0.00013753,2]
[331840497,1720789858990,-1122.38,0.00013753,2]
[331840498,1720789859000,-545.75,0.00013753,2]
[331840499,1720789859009,-500.0,0.00013753,2]
[331840500,1720789859019,-1208.09,0.00013753,2]
[331840501,1720789859028,-500.0,0.00013753,2]
[331840502,1720789859038,-830.38,0.00013753,2]
[331840503,1720789859047,-1423.47,0.00013753,2]
[331840504,1720789859056,-935.0,0.00013753,2]
[331840505,1720789859066,-500.0,0.00013753,2]
[331840506,1720789859075,-500.0,0.00013753,2]
[331840507,1720789859084,-732.28,0.00013753,2]
[331840508,1720789859094,-595.63,0.00013753,2]
[331840509,1720789859103,-675.43,0.00013753,2]
[331840510,1720789859112,-500.0,0.00013753,2]
[331840511,1720789859122,-500.0,0.00013753,2]
[331840512,1720789859131,-230.88447064,0.00013753,2]
[331840513,1720789859140,-500.0,0.00013753,2]
[331840514,1720789859149,-575.5081626,0.00013753,2]
[331840515,1720789859158,-970.18,0.00013753,2]
[331840516,1720789859167,-500.0,0.00013753,2]
[331840517,1720789859176,-618.79,0.00013753,2]
[331840518,1720789859185,-500.0,0.00013753,2]
[331840519,1720789859194,-535.05,0.00013753,2]
[331840520,1720789859203,-1432.8,0.00013753,2]
[331840521,1720789859212,-1581.92,0.00013753,2]
[331840522,1720789859221,-500.0,0.00013753,2]
[331840523,1720789859230,-687.34,0.00013753,2]
[331840524,1720789859239,-500.0,0.00013753,2]
[331840525,1720789859248,-1174.83,0.00013753,2]
[331840526,1720789859257,-1262.86,0.00013753,2]
[331840527,1720789859266,-939.25494367,0.00013753,2]
[331840528,1720789859754,-656.56505633,0.00013753,2]
[331840529,1720789859765,-500.0,0.00013753,2]
[331840530,1720789859775,-500.0,0.00013753,2]
[331840531,1720789859784,-151.0,0.00013753,2]
[331840532,1720789859794,-291.272056,0.00013753,2]
[331840533,1720789859804,-500.0,0.00013753,2]
[331840534,1720789859814,-698.11,0.00013753,2]
[331840535,1720789859823,-1081.07,0.00013753,2]
[331840536,1720789859833,-500.0,0.00013753,2]
[331840537,1720789859842,-500.0,0.00013753,2]
[331840538,1720789859852,-500.0,0.00013753,2]
[331840539,1720789859862,-500.0,0.00013753,2]
[331840540,1720789859872,-984.25,0.00013753,2]
[331840541,1720789859882,-500.0,0.00013753,2]
[331840542,1720789859892,-1268.4,0.00013753,2]
[331840543,1720789859902,-555.49,0.00013753,2]
[331840544,1720789859912,-1120.21,0.00013753,2]
[331840545,1720789859922,-795.45,0.00013753,2]
[331840546,1720789859931,-500.0,0.00013753,2]